Cogmind - Beta 16.1 @@@ ROGUE MODE // 2026.04.01 @ 13:51:43 Player: the Result: Self-destructed Performance ------------- Evolutions (4) 2000 Regions Visited (5) 1000 Robots Destroyed (32) 160 Value Destroyed (1134) 1134 Prototype IDs (6) 120 Alien Tech Used (0) 0 Bonus (837) 837 TOTAL SCORE: 5251 Bonus ------- Follower Combat Kills 37 Registered with UFD 300 Met Optimus in HQ 500 Cogmind --------- Core Integrity 397/850 Matter 285/300 Energy 6/100 System Corruption 3% Temperature Warm (160) Movement Walking (114) Location -6/Factory Parts ------- > --- POWER (2) -------- (None) > --- PROPULSION (5) --- Armored Leg Armored Leg Armored Leg Armored Leg Improved VSS Leg > --- UTILITY (5) ------ Advanced Heat Sink High-capacity Storage Unit Advanced Signal Interpreter A0-MCA's Component Scanner > --- WEAPON (3) ------- Thermic Laser Plasma Cannon > --- INVENTORY (20) --- Light Fission Core Flexi-carbon Leg Flexi-carbon Leg Armored Leg Armored Leg Armored Leg Structural Scanner Improved Medium Armor Plating CPS Tube (2) Power Sword Botcube Peak State ------------ > --- POWER ------------ Fission Core Light Fission Core > --- PROPULSION ------- Armored Leg Armored Leg Armored Leg Armored Leg Improved VSS Leg > --- UTILITY ---------- High-capacity Storage Unit Advanced Signal Interpreter Seismic Detector Improved Medium Armor Plating > --- WEAPON ----------- Plasma Cannon Heavy Ion Cannon Power Sword > --- INVENTORY -------- Flexi-carbon Leg Flexi-carbon Leg Armored Leg Armored Leg Armored Leg Coolant Injector Improved Medium Armor Plating Improved Medium Armor Plating A0-MCA's Component Scanner Thermic Laser CPS Tube CPS Tube Botcube [Rating: 65] Favorites ----------- Power Light Ion Engine Engine Light Ion Engine Power Core Fission Core Propulsion Spiked Treads Treads Spiked Treads Leg Aluminum Leg Utility Medium Storage Unit Device Terrain Scanner Storage Medium Storage Unit Processor Advanced Signal Interpreter Hackware Hacking Suite Protection Medium Armor Plating Weapon Plasma Cannon Energy Gun Thermic Laser Energy Cannon Plasma Cannon Ballistic Gun Heavy Machine Gun Ballistic Cannon Magnetic Acceleration Cannon Special Weapon CPS Tube Impact Weapon Power Maul Slashing Weapon Power Sword Piercing Weapon Heavy Pick Build | -11 -10 -10 -9 -9 -6 ------- Run | Yrd Mat Sub Rec Scr Fac Slots Evolved 8 | . . . . . 8 Power 1 | . . . . . 1 Propulsion 3 | . . . . . 3 Utility 3 | . . . . . 3 Weapon 1 | . . . . . 1 Parts Attached 45 | 2 . 2 . 9 32 Power 4 | . . . . 1 3 Engine 1 | . . . . 1 . Core 3 | . . . . . 3 Reactor . | . . . . . . Propulsion 15 | 2 . 1 . 3 9 Treads 4 | 2 . . . 2 . Leg 11 | . . 1 . 1 9 Wheel . | . . . . . . Hover . | . . . . . . Flight . | . . . . . . Utility 13 | . . 1 . 2 10 Device 5 | . . 1 . . 4 Storage 2 | . . . . 1 1 Processor 2 | . . . . . 2 Hackware 1 | . . . . . 1 Protection 3 | . . . . 1 2 Artifact . | . . . . . . Weapon 13 | . . . . 3 10 Energy Gun 2 | . . . . . 2 Energy Cannon 4 | . . . . 1 3 Ballistic Gun 2 | . . . . . 2 Ballistic Cannon 1 | . . . . 1 . Launcher . | . . . . . . Special Weapon 1 | . . . . . 1 Impact Weapon 1 | . . . . . 1 Slashing Weapon 1 | . . . . . 1 Piercing Weapon 1 | . . . . 1 . Special Melee Weapon . | . . . . . . Unidentified Prototypes . | . . . . . . Parts Lost 12 | . . 1 . . 11 Power 1 | . . . . . 1 Propulsion 3 | . . 1 . . 2 Utility 4 | . . . . . 4 Weapon 4 | . . . . . 4 Highest Loss Streak 4 | . . 1 . . 4 To Critical Strikes . | . . . . . . Average Backups 4 | 1 4 3 3 3 8 Power . | . 1 1 1 . . Propulsion . | . 2 1 1 . . Utility 2 | . 1 1 1 1 3 Weapon . | . . . . . 1 Tool/Special . | . . . . . . Unused Backups 31 | . . 1 . 12 18 Power 2 | . . . . 1 1 Propulsion 9 | . . 1 . 2 6 Utility 16 | . . . . 7 9 Weapon 3 | . . . . 2 1 Tool/Special 1 | . . . . . 1 Average Slot Usage (%) 62 | . 28 36 42 66 77 Engine 2 | . . . . 3 1 Core 1 | . . . . . 4 Treads 16 | . 28 17 14 21 4 Leg 9 | . . 10 14 6 18 Device 7 | . . 8 14 6 8 Storage 5 | . . . . 7 6 Processor 1 | . . . . . 5 Protection 2 | . . . . 3 5 Energy Cannon 4 | . . . . 4 7 Ballistic Gun 1 | . . . . . 4 Ballistic Cannon 3 | . . . . 7 . Piercing Weapon 2 | . . . . 4 . Peak Build Rating 65 | 2 2 3 3 20 65 Average Rating 17 | 1 2 2 3 11 45 On Entrance 5 | . 2 2 3 3 20 Avg Prop Armor Cover (%) 36 | 41 41 38 37 36 7 Naked Turns . | . . . . . . Heaviest Build 78 | . . 1 1 35 78 Greatest Support 79 | 20 3 3 3 40 79 Greatest Overweight (x) 2 | . . . . 1 2 Average Overweight (x) . | . . . . . . Largest Inventory Capacity 20 | 5 5 5 5 10 20 Average Capacity 7 | 5 5 5 5 7 11 Most Carried 15 | 4 5 5 5 10 15 Average Carried 6 | 1 4 4 5 5 9 Final Capacity 20 | 5 5 5 5 10 20 Final Carried 11 | 4 5 5 5 8 11 Class Distribution -------------------- 84% | Mutant 10% | Scavenger-Mutant 3% | Tank Dominant Class ---------------- Mutant | -10/Materials Mutant | -10/Subcaves Mutant | -9/Recycling Mutant | -9/Scraptown Scavenger-Mutant | -6/Factory Resources | -11 -10 -10 -9 -9 -6 ----------- Run | Yrd Mat Sub Rec Scr Fac Matter Collected 1037 | 122 29 89 . 55 742 Remotely . | . . . . . . Salvage Created 1286 | . 29 . . . 1257 Parts 61 | . 1 . . . 60 Haulers Intercepted . | . . . . . . Recyclers Shooed 1 | . . . . . 1 Parts Field Recycled . | . . . . . . Retrieved Matter . | . . . . . . Parts Self-Destructed 4 | . . 4 . . . Prevented . | . . . . . . Parts Restored . | . . . . . . Kills | -11 -10 -10 -9 -9 -6 ------- Run | Yrd Mat Sub Rec Scr Fac Combat Hostiles Destroyed 24 | . . . . . 24 Melee 3 | . . . . . 3 Guns 8 | . . . . . 8 Cannons 8 | . . . . . 8 Classes Destroyed 13 | . 1 . . . 12 Worker 1 | . 1 . . . . Builder 3 | . . . . . 3 Tunneler 2 | . . . . . 2 Recycler 1 | . . . . . 1 Operator 1 | . . . . . 1 Swarmer 11 | . . . . . 11 Grunt 4 | . . . . . 4 Brawler 1 | . . . . . 1 Duelist 1 | . . . . . 1 Sentry 1 | . . . . . 1 Hunter 1 | . . . . . 1 Programmer 4 | . . . . . 4 Behemoth 1 | . . . . . 1 Best Kill Streak 9 | . 1 . . . 9 Combat Bots Only 8 | . . . . . 8 Max Kills in Single Turn 2 | . 1 . . . 2 Gunslinging . | . . . . . . Exploded . | . . . . . . Melee 1 | . . . . . 1 Uniques/NPCs Destroyed . | . . . . . . Combat | -11 -10 -10 -9 -9 -6 -------- Run | Yrd Mat Sub Rec Scr Fac Hostile Shots Fired 282 | . 11 47 2 . 222 Missed 96 | . 7 24 1 . 64 Hits 186 | . 4 23 1 . 158 Projectile 186 | . 4 23 1 . 158 Critical Strikes 7 | . . . . . 7 Damage Taken 2881 | . 46 336 20 . 2479 Core 514 | . 20 41 . . 453 Absorbed by Shields . | . . . . . . Core Remaining (%) 87 | 100 . . . 75 . Volleys Fired 70 | . . . . . 70 Largest 3 | . . . . . 3 Hottest 230 | . . . . . 230 Shots Fired 160 | . . . . . 160 Gun 71 | . . . . . 71 Cannon 89 | . . . . . 89 Launcher . | . . . . . . Special . | . . . . . . Kinetic 59 | . . . . . 59 Thermal 101 | . . . . . 101 Explosive . | . . . . . . Electromagnetic . | . . . . . . Robot Hit Streak 9 | . . . . . 9 Robot Miss Streak 3 | . . . . . 3 Penetration Max . | . . . . . . Secondary Targets 1 | . . . . . 1 Max Gunslinging Chain 1 | . . . . . 1 Shots Hit Robots 108 | . . . . . 108 Core Hits 44 | . 1 . . . 43 Critical Kills 2 | . . . . . 2 Critical Parts Destroyed . | . . . . . . Critical Strikes 4 | . . . . . 4 Burn 2 | . . . . . 2 Meltdown 2 | . . . . . 2 Melee Attacks 33 | . . . . . 33 Impact 6 | . . . . . 6 Slashing 27 | . . . . . 27 Piercing . | . . . . . . Sneak Attacks 2 | . . . . . 2 Combat Hostiles . | . . . . . . Follow-up Attacks . | . . . . . . Damage Inflicted 3175 | . 12 . 13 . 3150 Guns 1132 | . . . . . 1132 Cannons 1582 | . . . . . 1582 Explosions . | . . . . . . Melee 432 | . . . . . 432 Ramming 29 | . 12 . 13 . 4 Kinetic 984 | . . . . . 984 Thermal 1730 | . . . . . 1730 Explosive . | . . . . . . Electromagnetic . | . . . . . . Impact . | . . . . . . Slashing 432 | . . . . . 432 Piercing . | . . . . . . Highest Corruption 3 | . . . . . 3 Average Corruption 2 | . . . . . 2 Corruption Purged . | . . . . . . Corruption Blocked . | . . . . . . Effects 8 | . . . . . 8 Message Errors 1 | . . . . . 1 Matter Fused 3 | . . . . . 3 Energy Discharges 1 | . . . . . 1 Misfires 1 | . . . . . 1 Alerts 1 | . . . . . 1 Weapon Failures 1 | . . . . . 1 Overload Shots . | . . . . . . Overflow Damage 83 | . . . . . 83 Projectiles 1 | . . . . . 1 Explosions . | . . . . . . Melee 82 | . . . . . 82 Knockbacks 1 | . . . 1 . . Impact 1 | . . . 1 . . Kinetic . | . . . . . . Secondary . | . . . . . . Self-Inflicted Damage 12 | . 6 . 6 . . Shots . | . . . . . . Rammed 2 | . 1 . 1 . . Targets Rammed 3 | . 1 . 1 . 1 Kicked 1 | . . . . . 1 Crushed . | . . . . . . Highest Temperature 551 | . . . . . 551 Average Temperature 147 | . . . . . 147 Received Heat Transfer 791 | . 24 72 9 . 686 Effects 12 | . . . . . 12 Shutdowns 1 | . . . . . 1 Energy Bleed 1 | . . . . . 1 Interference 3 | . . . . . 3 Matter Decay 1 | . . . . . 1 Damage (major) 6 | . . . . . 6 Siege Activations . | . . . . . . Martial Activations . | . . . . . . Shielding Activations . | . . . . . . Robots Disrupted . | . . . . . . Combat Hostiles . | . . . . . . Robots Corrupted . | . . . . . . Combat Hostiles . | . . . . . . Parts Fried . | . . . . . . Impact Corruptions . | . . . . . . Robots Melted 5 | . . . . . 5 Combat Hostiles 5 | . . . . . 5 Parts Melted 16 | . . . . . 16 Heat Transferred 3467 | . . . . . 3467 Parts Sabotaged . | . . . . . . Parts Stolen . | . . . . . . Parts Stripped . | . . . . . . Power Chain Reactions . | . . . . . . Alert | -11 -10 -10 -9 -9 -6 ------- Run | Yrd Mat Sub Rec Scr Fac Maximum Alert Level 1 | . . . . . 1 Low Security (%) 97 | 100 100 . 100 . 96 Level 1 2 | . . . . . 3 Level 2 . | . . . . . . Level 3 . | . . . . . . Level 4 . | . . . . . . Level 5 . | . . . . . . High Security . | . . . . . . Max Security . | . . . . . . Peak Influence 370 | . 64 . 116 . 370 Initial . | . . . . . . Average 55 | . 37 . 57 . 58 Influence Increases 1072 | . 114 . 166 . 792 Destroy 0b10 Robot/C 500 | . . . . . 500 Destroy 0b10 Robot/NC 40 | . 5 . . . 35 Destroy Leader 120 | . . . . . 120 Allied During Kill 5 | . . . . . 5 Successful Hack 20 | . 4 . 16 . . Select Force Hacks 150 | . . . 150 . . Disable Machine 60 | . . . . . 60 Destroy Structure 27 | . . . . . 27 Partial Spotted 15 | . . . . . 15 Lose Combat Pursuer 135 | . 105 . . . 30 Influence Decreases 746 | . 70 44 60 106 466 Entered New Map 128 | . . 22 . 106 . Time Decay 488 | . 70 22 60 . 336 Lost Part 110 | . . . . . 110 Lost Ally 20 | . . . . . 20 Squads Dispatched 14 | . 3 . . . 11 Investigation 6 | . 1 . . . 5 Extermination 3 | . . . . . 3 Reinforcement 4 | . 2 . . . 2 Assault . | . . . . . . Garrison 1 | . . . . . 1 Intercept . | . . . . . . Searches Triggered . | . . . . . . Construction Impeded 1 | . . . . . 1 Haulers Reinforced . | . . . . . . Active Scanning Responses . | . . . . . . Cargo Convoy Interrupts . | . . . . . . Stealth | -11 -10 -10 -9 -9 -6 --------- Run | Yrd Mat Sub Rec Scr Fac Distress Signals 5 | . . . 1 . 4 Communications Jammed . | . . . . . . Distress Signals . | . . . . . . Times Spotted 62 | . 12 10 1 . 39 Peak Tracking Total 8 | . 6 4 1 . 8 Tactical Retreats 10 | . 3 5 . . 2 Traps | -11 -10 -10 -9 -9 -6 ------- Run | Yrd Mat Sub Rec Scr Fac Traps Triggered 3 | . 1 . . . 2 Indirectly . | . . . . . . Trap Hack Attempts . | . . . . . . Triggered . | . . . . . . Disarmed . | . . . . . . Reprogrammed . | . . . . . . Reused . | . . . . . . Traps Extracted . | . . . . . . Installed . | . . . . . . Triggered . | . . . . . . Most Traps Carried 3 | . . 2 2 3 . Machines | -11 -10 -10 -9 -9 -6 ---------- Run | Yrd Mat Sub Rec Scr Fac Machines Disabled 4 | . . . . . 4 Max in Single Turn 1 | . . . . . 1 Machines Repaired . | . . . . . . Machines Dismantled . | . . . . . . Machines Sabotaged . | . . . . . . Overloaded Fab Kills . | . . . . . . Hacking | -11 -10 -10 -9 -9 -6 --------- Run | Yrd Mat Sub Rec Scr Fac Machines Accessed 19 | . 2 1 8 1 7 Terminals 6 | . 2 . 3 . 1 Fabricators . | . . . . . . Repair Stations . | . . . . . . Recycling Units 9 | . . . 5 . 4 Scanalyzers 2 | . . . . . 2 Garrison Access . | . . . . . . Total Hacks 40 | . 3 5 17 1 14 Successful 21 | . 2 5 7 1 6 Failed 18 | . 1 . 10 . 7 Catastrophic 2 | . . . 1 . 1 Database Lockouts 1 | . . . . . 1 Manual 17 | . 2 . 8 . 7 Terminals 13 | . 3 . 9 . 1 Fabricators . | . . . . . . Repair Stations . | . . . . . . Recycling Units 15 | . . . 8 . 7 Scanalyzers 6 | . . . . . 6 Garrison Access . | . . . . . . Terminal Hacks 10 | . 2 5 2 1 . Record 5 | . . 5 . . . Part Schematic 2 | . . . 2 . . Locate Traps 1 | . 1 . . . . Zone Layout 1 | . 1 . . . . Proto ID Catalog 1 | . . . . 1 . Fabricator Hacks . | . . . . . . Repair Station Hacks . | . . . . . . Recycling Unit Hacks . | . . . . . . Scanalyzer 3 | . . . . . 3 Insert Component 1 | . . . . . 1 Analyze 1 | . . . . . 1 Retrieve Study 1 | . . . . . 1 Garrison Access Hacks . | . . . . . . Unauthorized Hacks 8 | . . . 5 . 3 Terminals . | . . . . . . Fabricators . | . . . . . . Repair Stations . | . . . . . . Recycling Units 8 | . . . 5 . 3 Tunnel 5 | . . . 5 . . Fedlink 3 | . . . . . 3 Scanalyzers . | . . . . . . Garrison Access . | . . . . . . Data Cores Recovered 1 | . . . . . 1 Used . | . . . . . . Hacking Detections 8 | . 1 . 4 . 3 Full Trace Events 3 | . . . 2 . 1 Feedback Events . | . . . . . . Feedback Blocked . | . . . . . . Robot Schematics Acquired . | . . . . . . Robots Built . | . . . . . . Authchips . | . . . . . . Time . | . . . . . . Total Robot Build Rating . | . . . . . . Part Schematics Acquired 3 | . . . 2 . 1 Parts Built . | . . . . . . Authchips . | . . . . . . Time . | . . . . . . Total Part Build Rating . | . . . . . . Part Studies Acquired 1 | . . . . . 1 Parts Repaired . | . . . . . . Time . | . . . . . . Parts Recycled . | . . . . . . Recycled Matter . | . . . . . . Retrieved Matter . | . . . . . . Retrieved Components . | . . . . . . Parts Scanalyzed 1 | . . . . . 1 Part Schematics Acquired 1 | . . . . . 1 Parts Damaged . | . . . . . . Bothacking | -11 -10 -10 -9 -9 -6 ------------ Run | Yrd Mat Sub Rec Scr Fac Used RIF Installer . | . . . . . . Robots Hacked . | . . . . . . Non-combat . | . . . . . . Combat . | . . . . . . Robot Hacks Applied . | . . . . . . Relay Couplers Released . | . . . . . . Fabnet Peak Effective % . | . . . . . . Robots Rewired . | . . . . . . Allies Hacked . | . . . . . . Hacks Repelled . | . . . . . . Allies | -11 -10 -10 -9 -9 -6 -------- Run | Yrd Mat Sub Rec Scr Fac Total Allies 1 | . . . . 1 . Largest Group 1 | . . . . 1 1 Highest-Rated Group 66 | . . . . 66 66 Highest-Rated Ally 66 | . . . . 66 66 Initial UFD Resources 24 | . . . . . 24 Total Orders 2 | . . . . 2 . STAY 1 | . . . . 1 . FOLLOW 1 | . . . . 1 . Ally Attacks 6 | . . . . . 6 Total Damage 183 | . . . . . 183 Kills 1 | . . . . . 1 Allies Corrupted . | . . . . . . Allies Melted . | . . . . . . Intel | -11 -10 -10 -9 -9 -6 ------- Run | Yrd Mat Sub Rec Scr Fac Active Infowar (turns) 3634 | . . 649 162 1557 1266 Sensors 604 | . . . . . 604 Terrain 2368 | . . 649 162 1557 . Seismic 1266 | . . . . . 1266 Robot Analysis Total . | . . . . . . Derelict Logs Recovered 3 | . . 3 . . . Drone Launches . | . . . . . . Drone Recoveries . | . . . . . . Exploration | -11 -10 -10 -9 -9 -6 ------------- Run | Yrd Mat Sub Rec Scr Fac Turns Passed 5981 | 35 177 1014 162 3141 1452 Spaces Moved 5743 | 45 344 1311 322 2968 753 Core 3882 | 42 344 1311 322 1863 . Treads 1333 | 3 . . . 1105 225 Legs 528 | . . . . . 528 Wheels . | . . . . . . Hover . | . . . . . . Flight . | . . . . . . Fastest Speed 50 | 50 50 50 50 50 100 Average Speed 87 | 57 50 50 50 101 136 Slowest Speed 260 | 160 50 50 50 160 260 Overloaded Moves . | . . . . . . Propulsion Burnouts . | . . . . . . Robots Hopped . | . . . . . . Potential Cave-ins . | . . . . . . Cave-ins Triggered . | . . . . . . Exploration Rate (%) 56 | 3 68 81 70 91 27 Regions Visited 5 Branch Regions 3 Pre-discovered Areas 7 | . . 1 5 . 1 Known Exits Taken 1 | . . 1 . . . Unknown Exits Taken 4 | 1 1 . 1 1 . Scrap Searched 11 | . . 6 . 5 . Spaces Dug 19 | . . . . . 19 Terrain Destroyed 25 | . . . . . 25 Melee 19 | . . . . . 19 Projectile 6 | . . . . . 6 AOE . | . . . . . . Terrain Rammed . | . . . . . . Walls Destroyed . | . . . . . . Machines Disabled . | . . . . . . Actions | -11 -10 -10 -9 -9 -6 --------- Run | Yrd Mat Sub Rec Scr Fac Total 6488 | 52 348 1669 322 3110 987 Wait 481 | 2 3 353 . 72 51 Move 5738 | 44 343 1310 321 2967 753 Hop . | . . . . . . Pick Up 55 | 4 1 3 . 29 18 Fast Attach 28 | 2 . . . 7 19 Attach 13 | . . 2 . 2 9 Detach 7 | . . . . 3 4 Swap 8 | . . . . . 8 Drop 52 | . . 1 . 30 21 Fire 70 | . . . . . 70 Melee 33 | . . . . . 33 Ram 2 | . 1 . 1 . . Kick 1 | . . . . . 1 Crush . | . . . . . . Escape Stasis . | . . . . . . Rewire . | . . . . . . Trap . | . . . . . . Miscellaneous . | . . . . . . Route ------- -11/Scrapyard -10/Materials (discovered 3 exits: [*Mat] / [*Min] / *Sub) -10/Subcaves (discovered 3 exits: [*Mat x2] / *Rec) -9/Recycling (discovered 2 exits: [*Fac] / *Scr) -9/Scraptown (discovered 2 exits: *Fac x2) -6/Factory (discovered 8 exits: *Fac x4 / *Low x2 / Ext x2) History --------- Turn | Location | Event 13 | -11/Scrapyard | Discovered new exit (range 14) 36 | -11/Scrapyard | Entered Materials 65 | -10/Materials | Discovered new exit (range 7) 182 | -10/Materials | Discovered new exit (range 11) 209 | -10/Materials | Discovered new exit (range 8) 213 | -10/Materials | Entered Subcaves 303 | -10/Subcaves | Build established: Mutant 349 | -10/Subcaves | A swath of the cavern ceiling suddenly collapsed 433 | -10/Subcaves | Shifting Twisted Machinery released Sub. Beam Cannon 436 | -10/Subcaves | Discovered new exit (range 7) 444 | -10/Subcaves | Shifting Twisted Machinery released Sub. Beam Cannon 462 | -10/Subcaves | Learned Materials security intel 475 | -10/Subcaves | Identified exit to Recycling 948 | -10/Subcaves | Shifting Twisted Machinery released Piercing Trap 950 | -10/Subcaves | Shifting Twisted Machinery released Piercing Trap 1049 | -10/Subcaves | Discovered new exit (range 14) 1126 | -10/Subcaves | Learned Materials trap positions 1127 | -10/Subcaves | Visited Clippyterm 1128 | -10/Subcaves | Learned location of Extension (-6) 1128 | -10/Subcaves | Learned 40 Factory zone layouts 1172 | -10/Subcaves | A swath of the cavern ceiling suddenly collapsed 1227 | -10/Subcaves | Entered Recycling 1314 | -9/Recycling | Discovered new exit (range 16) 1376 | -9/Recycling | Scanned before Scraplab entrance 1384 | -9/Recycling | Entered Scraplab 1388 | -9/Recycling | Discovered new exit (range 3) 1389 | -9/Recycling | Entered Scraptown 1449 | -9/Scraptown | Visited Assassins FH 1456 | -9/Scraptown | Visited Cave Peace 1466 | -9/Scraptown | Visited Symbiants 1478 | -9/Scraptown | Visited Spacefarers 1501 | -9/Scraptown | Visited Shadow of the Wyrm 1509 | -9/Scraptown | Visited Awakened 1517 | -9/Scraptown | Visited UFD Registry 1517 | -9/Scraptown | Registered with UFD as "Pipefunk" 1538 | -9/Scraptown | Visited Chapter 10 1551 | -9/Scraptown | Visited Science Guys 1578 | -9/Scraptown | Visited A0-MCA Data Center 1587 | -9/Scraptown | Visited Botcube Research 1592 | -9/Scraptown | Visited Scrapoid Research Area 1602 | -9/Scraptown | Visited Research Penetration Think Tank 1613 | -9/Scraptown | Visited Supply Room 1631 | -9/Scraptown | Visited Scrap Suit Storage 1639 | -9/Scraptown | Visited Junk Repository 1649 | -9/Scraptown | Visited Supply Room 1778 | -9/Scraptown | Found Botcube 2097 | -9/Scraptown | Discovered new exit (range 13) 2442 | -9/Scraptown | Botcube activated 2466 | -9/Scraptown | Botcube completed mutation into treaded form, armed with 2 cannons. 3772 | -9/Scraptown | Found Scrap Suit 3834 | -9/Scraptown | Given an A- rating by A0-MCA 3836 | -9/Scraptown | Found A0-MCA's Component Scanner 4431 | -9/Scraptown | Met Optimus 4431 | -9/Scraptown | Accepted into 0bPrime 4509 | -9/Scraptown | Discovered new exit (range 3) 4530 | -9/Scraptown | Entered Factory 4530 | -6/Factory | Accompanied by 1 ally 4530 | -6/Factory | Evolved 8 slots: Power x1, Propulsion x3, Utility x3, Weapon x1 4531 | -6/Factory | Identified exit to Extension 4531 | -6/Factory | Identified exit to Lower Caves 4531 | -6/Factory | Identified exit to Factory 4697 | -6/Factory | Found Botcube 4745 | -6/Factory | Loaded intel: 8 recycling unit locations 4998 | -6/Factory | Build established: Scavenger-Mutant 5284 | -6/Factory | Central database locked down 5407 | -6/Factory | Learned location of Protoforge (-3) 5536 | -6/Factory | Spotted B-75 Beast 5612 | -6/Factory | Lost 3 parts (1u2w) 5667 | -6/Factory | Destroyed B-75 Beast 5695 | -6/Factory | Lost 3 parts (2n1u) 5714 | -6/Factory | Discovered exit to Factory (range 15) 5912 | -6/Factory | Garrison activated, responded to threat 5979 | -6/Factory | Core integrity fell below 50% 5982 | -6/Factory | Self-destructed Last Messages --------------- 05966_ Overheating: System interference. 05966_ Adv. Signal Interpreter temporarily disabled. 05966_ Hvy. Ion Cannon temporarily disabled. 05967_ System corrupted: IFF burst signal emitted. 05967_ Acquired Adv. Heat Sink. 05967_ K-01 Serf collects debris. 05972_ Overheating: Arm. Leg damaged (-134). 05972_ K-01 Serf collects debris. 05972_ Critical hit (Burn: +37). 05972_ K-01 Serf collects debris. 05974_ Hvy. Ion Cannon destroyed. 05975_ K-01 Serf collects debris. 05975_ Imp. Medium Armor Plating destroyed. 05975_ K-01 Serf collects debris. 05977_ S-27 Virus destroyed. 05978_ K-01 Serf collects debris. 05982_ CPS Tube destroyed. 05982_ K-01 Serf collects debris. Map ----- +----------------------------------------------------+ | ???????????????# # # """ """ # | | ???????????????# # #%""" """ # | | ???????????????# # ! # # | | ???????????????# # " ###+######### | | ???????????????# # | | ???????????????########## | | ??????????????????????# | | ??????????????????????# | | ??????????????????????### | | ??????????????????????### #################+## | | ????????????????????????# #???????????? | | ????????????????????????# #???????????? | | ????????????????????????# #???????????? | | ????????????????????????# ##########??# """ "" | | ??????????????########### # #??# "R "" | | ??????????????# # # #??# """ "" | | ??????????????# # # #??# """ | | ??????????????# # # " #??# | | ??????????????# """ """ # # """ #??######## | | #########?????# """ """ + + G #?????????? | | #########?????# """ """%#%% # """ #??????#### | | ## ##?????# *#!==*%# ! " #??????# | | ## ##?????# #=!t!=;% #??????# | | ## > ##?????###########+#;k########+######### | | ## ##????????????# g%g! #?# #?# # | | ## ##????????????# @%k* #?# #?# "" # | | ## ######????????# k[%%% #?# #?# "" # | | "" """""#????????# "" #?# #?# "T #### | | # #######??????# """ ### ### "" #### | | """ """"""""#??????# """" # # "" ## | | ## T########??????# """" # # ## # | | ### ##?????????????# """" # ##+##### # | | # #??????????????# """" # # | | # #??????????????# T # # | | + #??????????????# " ## """ " | | # #??????????????# ## """ T | | # ############################## """ " | | # # #???????????# # | | ?????????????????? #??########## """ "" # | | ?????????????????? #??# # """ T" # | | ?????????????????? #?## # """ "" # | | ?????????????????? #?# + # | | ?????????????????? #?## # # | | ?????????????????? #??# ####### # | | ?????????????????? #??# #?????# + | | ?????????????????? #??# #?????####### # | | ??????????????????######??# #???????????# # | | ??????????????????#???????# ##########??# # | | ??????????????????#???????#######+### #??# # | | ??????????????????#??????????# #### # | +----------------------------------------------------+ Best States ------------- Heat Dissipation 56 Coolant Potential 65 Energy Generation 18 Energy Capacity 310 Matter Stores 300 Matter Capacity 300 Sight Range 16 Robot Scan Range 15 Terrain Scan Range 14 Terrain Scan Density 10 Armor Coverage 225 Evasion (%) 55 Recoil Reduction 2 Offensive Hacking 10 Item Schematics ----------------- Gatling Laser | -9/Recycling | Hacked Core Analyzer | -9/Recycling | Hacked Power Maul | -6/Factory | Scanalyzed Robot Schematics ------------------ None Fabricated ------------ Nothing Repaired ---------- Nothing Studied --------- Hvy. Machine Gun | -6/Factory | Hacked Alien Tech Used ----------------- None Achievements -------------- CQB Challenges ------------ None Game ------ Seed SlugLinkedSpecial Manual? 0 Play Time 00:43:08 Cumulative 682.6 hours Start 2026.03.31 @ 22:57:54 End 2026.04.01 @ 13:51:43 Sessions 3 Manual Loads 0 Difficulty Rogue Special Mode None Game No. 371 Rogue 371 Adventurer 0 Explorer 0 Win Type - Total 30 Types 15/1/6/2/1/1/1/2/1/0 Lore% 92 Gallery% 86 Achievement% 78 Wizard Run 0 Options --------- Layout 1 ASCII 0 Keyboard 0 Movement Numpad Keybinds 0 Fullscreen 2 Font 24/Smallcaps Map View 50x40 Zoom Use 0% Tactical HUD 1 Map Filters NONE Filters NONE Steam 1 RUN: a6756d7e-a7fc-4c07-8cfa-4a0be044fcec